bitfinex/quotes_SOLUSD_20241117
["timestamp","ask_amount","ask_price","bid_price","bid_amount"]
[1731881377808,27.58701285,232.92,232.76,20.2808]
[1731881378016,27.58701285,232.81,232.77,10.7398]
[1731881378188,27.58701285,232.83,232.77,10.7398]
[1731881378708,27.58701285,232.81,232.74,0.09367462]
[1731881378884,27.58701285,232.81,232.74,4.39017462]
[1731881379085,27.58701285,232.81,232.74,0.09367462]
[1731881379281,31.88241285,232.81,232.74,0.09367462]
[1731881379485,27.58701285,232.81,232.74,4.39017462]
[1731881379686,27.58701285,232.81,232.74,24.39017462]
[1731881379893,27.58701285,232.81,232.74,0.09367462]
[1731881380418,27.58701285,232.79,232.74,0.09367462]
[1731881380719,4.2955,232.81,232.74,0.09367462]
[1731881380923,27.58701285,232.8,232.74,0.09367462]
[1731881381204,31.88261285,232.8,232.74,0.09367462]
[1731881381408,27.58701285,232.78,232.74,0.09367462]
[1731881381905,20.0,232.75,232.74,0.09367462]
[1731881382213,27.58701285,232.76,232.74,0.09367462]
[1731881383219,31.88331285,232.76,232.74,0.09367462]
[1731881383788,27.58701285,232.76,232.74,0.09367462]
[1731881384007,27.58701285,232.78,232.74,0.09367462]
[1731881384308,17.0172025,232.78,232.74,0.09367462]
[1731881384492,17.0172025,232.76,232.74,0.09367462]
[1731881389117,17.0172025,232.78,232.74,0.09367462]
[1731881389422,17.0172025,232.8,232.74,0.09367462]
[1731881389584,17.0172025,232.78,232.74,0.09367462]
[1731881391696,17.0172025,232.8,232.74,0.09367462]
[1731881391896,4.2933,232.92,232.78,17.0172025]
[1731881392195,17.0172025,232.91,232.82,23.87055862]
[1731881392499,17.0172025,232.83,232.75,15.0375]
[1731881392699,0.1,232.89,232.75,15.0375]
[1731881392904,17.0172025,232.79,232.74,0.09367462]
[1731881393114,17.0172025,232.77,232.74,0.09367462]
[1731881393316,17.0172025,232.79,232.74,0.09367462]
[1731881393620,17.0172025,232.83,232.74,15.13177462]
[1731881394997,17.0172025,232.83,232.76,0.09367462]
[1731881395829,17.0172025,232.81,232.74,15.13177462]
[1731881396112,17.0172025,232.79,232.74,15.13177462]
[1731881397194,17.0172025,232.83,232.76,0.09367462]
[1731881397529,17.0172025,232.81,232.76,0.09367462]
[1731881398495,17.0172025,232.81,232.75,4.2963]
[1731881399536,17.0172025,232.81,232.74,10.83527462]
[1731881399818,21.3126025,232.81,232.74,10.83527462]
[1731881400191,21.3126025,232.81,232.74,15.13187462]
[1731881400434,0.12549,232.87,232.74,15.13187462]
[1731881400716,17.0172025,232.84,232.76,23.87055862]
[1731881400921,32.1977,232.94,232.75,17.0172025]
[1731881400922,17.0172025,232.88,232.8,0.09367462]
[1731881401215,17.0172025,232.84,232.75,17.0172025]
[1731881401413,17.0172025,232.84,232.76,23.87055862]
[1731881401616,17.0172025,232.84,232.76,28.16665862]
[1731881401826,17.0172025,232.84,232.74,32.31847462]
[1731881401827,17.0172025,232.77,232.74,0.09367462]
[1731881402153,17.0172025,232.79,232.74,0.09367462]
[1731881402718,17.0172025,232.79,232.74,4.39017462]
[1731881403028,17.0172025,232.84,232.78,0.09367462]
[1731881403321,4.2935,232.91,232.79,17.0172025]
[1731881403322,17.0172025,232.87,232.79,17.0172025]
[1731881403496,17.0172025,232.87,232.8,0.09367462]
[1731881403692,17.0172025,232.93,232.84,23.87055862]
[1731881403918,21.3099025,232.95,232.86,23.87055862]
[1731881404224,17.0172025,232.93,232.86,23.87055862]
[1731881404412,17.0172025,232.95,232.88,23.87055862]
[1731881404923,4.2914,233.02,232.92,0.09367462]
[1731881404924,17.0172025,232.99,232.92,0.09367462]
[1731881405220,17.0172025,232.99,232.92,23.87055862]
[1731881405820,17.0172025,233.01,232.93,17.0172025]
[1731881406399,17.0172025,232.99,232.95,0.42927667]
[1731881406922,17.0172025,232.97,232.95,0.42927667]
[1731881407809,21.3096025,232.97,232.95,0.42927667]
[1731881408613,20.0,232.96,232.95,0.42927667]
[1731881409514,21.3096025,232.97,232.95,0.42927667]
[1731881410213,17.0172025,233.03,232.96,23.87055862]
[1731881410605,21.3082025,233.05,232.96,23.87055862]
[1731881411422,17.0172025,233.07,233.0,0.09367462]
[1731881411629,17.0172025,233.09,233.03,0.09367462]
[1731881411924,17.0172025,233.13,233.05,23.87055862]
[1731881412620,17.0172025,233.07,232.97,10.7308]
[1731881412823,17.0172025,233.05,232.98,23.776884]
[1731881413214,17.0172025,233.05,232.99,0.09367462]
[1731881413706,17.0172025,233.07,232.99,0.09367462]
[1731881413905,17.0172025,233.07,233.0,23.776884]
[1731881414113,17.0172025,233.07,232.99,0.09367462]
[1731881414114,21.3079025,233.07,232.99,0.09367462]
[1731881415440,17.0172025,233.05,232.99,0.09367462]
[1731881416233,17.0172025,233.07,233.01,0.09367462]
[1731881416943,17.0172025,233.09,233.01,17.11087712]
[1731881417107,17.0172025,233.11,233.02,23.776884]
[1731881417309,17.0172025,233.11,233.03,0.09367462]
[1731881417536,17.0172025,233.09,233.03,0.09367462]
[1731881417836,17.0172025,233.09,233.0,4.2918]
[1731881418003,17.0172025,233.09,233.01,23.776884]
[1731881418204,4.289,233.15,233.02,0.09367462]
[1731881418424,17.0172025,233.11,233.04,23.87055862]
[1731881419317,17.0172025,233.13,233.04,23.87055862]
[1731881419711,17.0172025,233.15,233.08,23.87055862]
[1731881420127,4.2883,233.19,233.12,0.09367462]
[1731881420128,17.0172025,233.19,233.12,0.09367462]
[1731881420320,17.0172025,233.21,233.14,23.87055862]
[1731881420813,17.0172025,233.23,233.16,0.09367462]
[1731881421008,17.0172025,233.25,233.16,23.87055862]
[1731881421238,17.0172025,233.27,233.2,23.87055862]
[1731881421737,21.3037025,233.29,233.22,0.09367462]
[1731881421938,17.0172025,233.27,233.22,0.09367462]
[1731881422934,17.0172025,233.27,233.21,0.09367462]
[1731881423444,17.0172025,233.27,233.22,23.776884]
[1731881424118,21.3037025,233.29,233.23,0.09367462]
[1731881424547,17.0172025,233.27,233.23,0.09367462]
[1731881424837,17.0172025,233.27,233.2,23.776884]
[1731881425234,17.0172025,233.25,233.17,17.0172025]
[1731881425433,17.0172025,233.25,233.17,41.0450665]
[1731881425622,17.0172025,233.25,233.18,0.09367462]
[1731881425822,17.0172025,233.27,233.18,0.09367462]
[1731881426025,17.0172025,233.31,233.24,0.09367462]
[1731881426334,17.0172025,233.33,233.24,24.12153862]
[1731881426636,17.0172025,233.33,233.26,23.87055862]
[1731881427036,17.0172025,233.31,233.26,23.87055862]
[1731881427824,21.3034025,233.31,233.23,10.7186]
[1731881428018,17.0172025,233.31,233.25,0.09367462]
[1731881428241,21.3033025,233.31,233.25,0.09367462]
[1731881428919,17.0172025,233.31,233.25,0.09367462]
[1731881431324,17.0172025,233.29,233.24,23.776884]
[1731881431742,17.0172025,233.29,233.22,23.87055862]
[1731881433230,17.0172025,233.29,233.22,28.15815862]
[1731881434665,17.0172025,233.31,233.24,23.87055862]
[1731881435828,21.3030025,233.33,233.26,23.87055862]
[1731881436028,17.0172025,233.33,233.26,23.87055862]
[1731881436233,17.0172025,233.33,233.16,17.0172025]
[1731881436234,17.0172025,233.28,233.14,0.1]
[1731881436461,21.3028025,233.34,233.25,17.0172025]
[1731881436670,21.3028025,233.34,233.26,0.09367462]
[1731881436867,17.0172025,233.32,233.26,0.09367462]
[1731881437035,17.0172025,233.34,233.26,17.11087712]
[1731881437332,17.0172025,233.39,233.32,0.09367462]
[1731881437535,17.0172025,233.33,233.25,0.12549]
[1731881437726,17.0172025,233.33,233.26,23.776884]
[1731881437930,17.0172025,233.35,233.27,0.09367462]
[1731881438154,17.0172025,233.35,233.29,0.09367462]
[1731881438357,17.0172025,233.35,233.27,17.0172025]
[1731881438561,17.0172025,233.35,233.19,21.4409]
[1731881438562,17.0172025,233.29,233.18,17.0172025]
[1731881438768,0.1,233.34,233.16,7.9027]
[1731881438769,17.0172025,233.24,233.16,7.9027]
[1731881439054,17.0172025,233.26,233.18,17.0172025]
[1731881439928,17.0172025,233.26,233.19,0.09367462]
[1731881440248,17.0172025,233.26,233.19,28.15885862]
[1731881440662,17.0172025,233.28,233.19,28.15885862]
[1731881440963,17.0172025,233.28,233.21,23.87055862]
[1731881441165,17.0172025,233.28,233.2,23.776884]
[1731881442163,4.2868,233.27,233.2,23.776884]
[1731881442740,4.2868,233.27,233.2,28.064884]
[1731881442953,21.3039025,233.28,233.2,28.064884]
[1731881443155,17.0172025,233.26,233.19,10.7208]
[1731881443357,17.0172025,233.24,233.17,4.2885]
[1731881443774,4.2867,233.28,233.15,25.0495]
[1731881443775,17.0172025,233.22,233.15,25.0495]
[1731881444061,17.0172025,233.2,233.16,0.09367462]
[1731881444369,17.0172025,233.18,233.09,10.7251]
[1731881444577,17.0172025,233.14,233.09,10.7251]
[1731881444868,17.0172025,233.14,233.06,37.3536025]
[1731881445067,17.0172025,233.12,233.04,27.7446025]
[1731881445245,17.0172025,233.12,233.04,15.0183]
[1731881445442,17.0172025,233.1,233.04,15.0183]
[1731881449484,17.0172025,233.12,233.05,23.87055862]
[1731881449674,10.72,233.21,233.09,23.87055862]
[1731881449675,17.0172025,233.18,233.09,23.87055862]
[1731881449875,17.0172025,233.18,233.11,23.87055862]
[1731881450547,17.0172025,233.2,233.11,23.87055862]
[1731881450751,17.0172025,233.2,233.13,23.87055862]
[1731881451079,4.2876,233.23,233.13,23.87055862]
[1731881451080,17.0172025,233.22,233.13,23.87055862]
[1731881453571,17.0172025,233.18,233.12,15.0135]
[1731881454269,17.0172025,233.2,233.13,23.87055862]
[1731881455477,21.3054025,233.2,233.12,10.724]
[1731881455674,21.3054025,233.2,233.1,4.2899]
[1731881455675,17.0172025,233.18,233.1,4.2899]
[1731881455870,17.0172025,233.18,233.11,23.776884]
[1731881456076,17.0172025,233.2,233.12,0.09367462]
[1731881456259,17.0172025,233.2,233.12,17.11087712]
[1731881456576,17.0172025,233.2,233.14,0.09367462]
[1731881457848,17.0172025,233.2,233.14,4.38277462]
[1731881458053,17.0172025,233.2,233.15,23.776884]
[1731881458671,0.1,233.29,233.16,15.0111]
[1731881458672,4.2868,233.27,233.16,15.0111]
[1731881458864,17.0172025,233.25,233.17,23.87055862]
[1731881459066,21.3040025,233.27,233.19,23.87055862]
[1731881459269,17.0172025,233.27,233.19,23.87055862]
[1731881459656,17.0172025,233.27,233.16,15.0111]
[1731881459657,17.0172025,233.29,233.22,23.87055862]
[1731881459969,17.0172025,233.33,233.24,17.0172025]
[1731881460167,8.5946,233.34,233.22,23.87055862]
[1731881460168,17.0172025,233.31,233.22,40.88776112]
[1731881460351,17.0172025,233.29,233.21,23.776884]
[1731881460553,17.0172025,233.29,233.22,0.09367462]
[1731881460754,17.0172025,233.29,233.22,4.38127462]
[1731881460955,21.3037025,233.29,233.22,4.38127462]
[1731881461180,21.3037025,233.29,233.23,23.776884]
[1731881461181,17.0172025,233.29,233.23,23.776884]
[1731881462193,17.0172025,233.31,233.24,15.0059]
[1731881462485,17.0172025,233.33,233.25,23.99604862]
[1731881462780,17.0172025,233.37,233.29,23.87055862]
[1731881462985,17.0172025,233.33,233.24,32.0231025]
[1731881463302,4.2844,233.4,233.26,17.11087712]
[1731881463471,17.0172025,233.4,233.32,23.87055862]
[1731881463787,17.0172025,233.44,233.37,0.09367462]
[1731881463956,0.4618823,233.45,233.39,23.87055862]
[1731881464153,0.4618823,233.45,233.39,28.15505862]
[1731881464386,17.0172025,233.43,233.35,23.776884]
[1731881464561,0.4618823,233.45,233.36,0.12549]
[1731881464765,17.0172025,233.42,233.39,0.09367462]
[1731881464967,17.0172025,233.42,233.35,40.7940865]
[1731881465579,0.4618823,233.45,233.38,23.87055862]
[1731881466287,0.4618823,233.45,233.39,4.2846]
[1731881466791,0.4618823,233.45,233.42,23.87055862]
[1731881467964,0.4618823,233.45,233.44,23.87055862]
[1731881468379,0.4618823,233.45,233.44,23.99604862]
[1731881469097,0.4618823,233.45,233.44,23.87055862]
[1731881469386,0.4618823,233.45,233.41,51.6896025]
[1731881469568,0.4618823,233.45,233.42,0.09367462]
[1731881470179,0.4618823,233.45,233.44,0.09367462]
[1731881470383,0.4618823,233.45,233.44,4.37737462]
[1731881470685,0.4618823,233.45,233.44,28.15425862]
[1731881470889,0.4618823,233.45,233.44,28.27974862]
[1731881471477,0.4618823,233.45,233.44,28.40523862]
[1731881471790,17.0172025,233.64,233.44,28.40523862]
[1731881471791,17.0172025,233.61,233.46,0.34465462]
[1731881471963,17.0172025,233.59,233.53,23.87055862]
[1731881472173,17.0172025,233.59,233.52,17.0172025]
[1731881472376,17.0172025,233.59,233.53,4.2821]
[1731881472576,17.0172025,233.55,233.46,40.7940865]
[1731881472892,17.0172025,233.53,233.46,51.5023865]
[1731881473192,17.0172025,233.51,233.46,10.7083]
[1731881473770,17.0172025,233.53,233.46,10.7083]
[1731881473974,17.0172025,233.51,233.46,10.7083]
[1731881474380,4.2826,233.5,233.42,21.3011025]
[1731881474592,17.0172025,233.51,233.42,21.3011025]
[1731881474767,17.0172025,233.51,233.44,17.0172025]
[1731881474971,17.0172025,233.53,233.45,0.09367462]
[1731881475169,17.0172025,233.53,233.42,14.9942]
[1731881475170,17.0172025,233.53,233.47,0.09367462]
[1731881475365,17.0172025,233.53,233.46,17.0172025]
[1731881475570,17.0172025,233.53,233.47,0.09367462]
[1731881475865,17.0172025,233.53,233.47,23.87055862]
[1731881476066,17.0172025,233.53,233.45,23.776884]
[1731881476490,17.0172025,233.53,233.46,4.37697462]
[1731881476979,20.0,233.58,233.44,10.7093]
[1731881477215,17.0172025,233.58,233.5,17.0172025]
[1731881477380,17.0172025,233.56,233.48,17.0172025]
[1731881477589,17.0172025,233.56,233.49,23.87055862]
[1731881477896,17.0172025,233.58,233.51,0.09367462]
[1731881478068,17.0172025,233.62,233.54,17.0172025]
[1731881478264,17.0172025,233.55,233.42,25.7047]
[1731881478489,17.0172025,233.5,233.42,21.4206]
[1731881478867,17.0172025,233.52,233.45,0.09367462]
[1731881479064,17.0172025,233.54,233.48,0.09367462]
[1731881479491,17.0172025,233.58,233.5,24.12153862]
[1731881479792,17.0172025,233.58,233.5,23.99604862]
[1731881480092,17.0172025,233.56,233.5,23.87055862]
[1731881480475,17.0172025,233.56,233.52,0.09367462]
[1731881480693,17.0172025,233.54,233.52,23.87055862]
[1731881480881,17.0172025,233.56,233.52,23.87055862]
[1731881481392,17.0172025,233.58,233.52,23.87055862]
[1731881481777,17.0172025,233.6,233.55,0.09367462]
[1731881482275,10.5614063,233.6,233.55,0.09367462]
[1731881483398,0.4618823,233.68,233.57,23.87055862]
[1731881483611,10.5614063,233.64,233.57,23.87055862]
[1731881483892,10.5614063,233.64,233.57,23.776884]
[1731881484108,10.5614063,233.62,233.56,23.776884]
[1731881484280,10.5614063,233.62,233.57,0.09367462]
[1731881484592,10.5614063,233.62,233.56,23.776884]
[1731881484593,10.5614063,233.62,233.55,14.986]
[1731881484800,10.5614063,233.62,233.56,23.776884]
[1731881484991,10.5614063,233.62,233.57,0.09367462]
[1731881485191,10.5614063,233.6,233.55,10.7043]
[1731881487188,10.5614063,233.62,233.56,23.87055862]
[1731881487386,0.4618823,233.68,233.58,0.09367462]
[1731881487588,0.4618823,233.68,233.63,23.99604862]
[1731881487897,0.4618823,233.68,233.63,23.87055862]
[1731881488276,0.4618823,233.68,233.63,40.65575845]
[1731881488697,0.4618823,233.68,233.64,0.09367462]
[1731881489291,0.4618823,233.68,233.65,4.2799]
[1731881489809,16.87887445,233.67,233.59,4.281]
[1731881489976,16.87887445,233.65,233.59,4.281]
[1731881490310,16.87887445,233.61,233.53,10.7049]
[1731881490471,16.87887445,233.61,233.54,16.87887445]
[1731881491076,16.87887445,233.65,233.57,0.09367462]
[1731881491277,4.7412823,233.68,233.53,10.7049]
[1731881491278,16.87887445,233.67,233.6,14.9828]
[1731881492505,0.4618823,233.68,233.61,23.99604862]
[1731881493004,0.4618823,233.68,233.63,23.87055862]
[1731881493215,0.4618823,233.68,233.67,16.87887445]
[1731881493381,0.16259031,233.68,233.67,45.27991307]
[1731881494299,16.87887445,233.81,233.7,0.09367462]
[1731881494486,16.87887445,233.81,233.72,16.87887445]
[1731881494681,16.87887445,233.81,233.73,23.87055862]
[1731881495582,16.87887445,233.81,233.75,23.87055862]
[1731881496787,16.87887445,233.79,233.74,14.9738]
[1731881497179,16.87887445,233.81,233.75,23.87055862]
[1731881497706,16.87887445,233.81,233.76,14.9725]
[1731881499086,16.87887445,233.85,233.77,38.84235862]
[1731881499601,0.4618823,233.92,233.81,23.776884]
[1731881499602,16.87887445,233.88,233.81,23.776884]
[1731881499777,16.87887445,233.88,233.83,0.09367462]
[1731881499977,16.87887445,233.9,233.83,0.09367462]
[1731881500383,17.34075675,233.92,233.85,0.09367462]
[1731881501088,16.87887445,233.9,233.84,14.9673]
[1731881501501,16.87887445,233.9,233.85,23.87055862]
[1731881501693,16.87887445,233.9,233.85,23.776884]
[1731881502406,16.87887445,233.9,233.84,14.9673]
[1731881502611,16.87887445,233.9,233.85,23.99604862]
[1731881503113,16.87887445,233.9,233.85,23.776884]
[1731881503804,16.87887445,233.88,233.82,4.2767]
[1731881504015,16.87887445,233.86,233.79,10.6931]
[1731881504682,16.87887445,233.84,233.79,10.6931]
[1731881504886,16.87887445,233.86,233.79,14.9704]
[1731881505796,16.87887445,233.9,233.8,16.97254907]
[1731881506000,16.87887445,233.88,233.81,23.776884]
[1731881506192,16.87887445,233.88,233.82,0.09367462]
[1731881506806,16.87887445,233.88,233.81,23.776884]
[1731881506807,16.87887445,233.88,233.81,28.053684]
[1731881507387,16.87887445,233.86,233.78,19.5236]
[1731881507897,16.87887445,233.86,233.78,23.801]
[1731881508291,16.87887445,233.86,233.78,51.37367445]
[1731881508495,16.87887445,233.86,233.79,0.09367462]
[1731881508787,21.15497445,233.86,233.79,10.6933]
[1731881508985,21.15497445,233.86,233.79,14.9706]
[1731881508986,16.87887445,233.86,233.79,14.9706]
[1731881511517,16.87887445,233.82,233.75,4.2779]
[1731881512025,16.87887445,233.82,233.74,14.9736]
[1731881512198,10.54254862,233.81,233.74,14.9736]
[1731881513426,10.54254862,233.79,233.74,10.6954]
[1731881514003,10.54254862,233.81,233.74,14.9736]
[1731881514509,4.2768,233.82,233.74,14.9736]
[1731881514714,10.54254862,233.8,233.74,14.9736]
[1731881519007,10.54254862,233.84,233.77,10.54254862]
[1731881519219,10.54254862,233.86,233.78,23.776884]
[1731881519523,10.54254862,233.84,233.76,23.776884]
[1731881519906,10.54254862,233.84,233.77,4.2777]
[1731881520102,10.54254862,233.84,233.77,14.9719]
[1731881522810,10.54254862,233.86,233.77,25.51444862]
[1731881523011,10.54254862,233.86,233.78,23.87055862]
[1731881523315,10.54254862,233.88,233.8,23.87055862]
[1731881523829,10.54254862,233.83,233.77,14.9719]
[1731881524332,10.54254862,233.83,233.78,23.87055862]
[1731881524809,10.54254862,233.85,233.78,23.87055862]
[1731881525009,10.54254862,233.85,233.79,14.9706]
[1731881525211,10.54254862,233.85,233.8,23.776884]
[1731881525950,0.4618823,233.92,233.85,0.21916462]
[1731881526121,0.4618823,233.92,233.85,23.776884]
[1731881526329,11.00443092,233.92,233.85,23.776884]
[1731881526533,11.00443092,233.92,233.83,23.87055862]
[1731881527136,0.4618823,233.92,233.85,23.87055862]
[1731881528422,0.4618823,233.92,233.87,23.776884]
[1731881529245,0.4618823,233.92,233.88,0.09367462]
[1731881530045,0.4618823,233.92,233.87,23.776884]
[1731881530423,0.4618823,233.92,233.88,4.2756]
[1731881530943,0.4618823,233.92,233.88,14.9648]
[1731881531133,0.4618823,233.92,233.89,23.87055862]
[1731881532520,0.4618823,233.92,233.91,23.776884]
[1731881533027,0.4618823,233.92,233.9,14.9636]
[1731881533241,0.4618823,233.92,233.91,23.87055862]
[1731881533725,0.4618823,233.92,233.9,14.9636]
[1731881534735,0.4618823,233.92,233.9,10.6883]
[1731881536236,0.4618823,233.92,233.89,0.09367462]
[1731881536629,0.4618823,233.92,233.86,31.92264862]
[1731881536945,0.4618823,233.92,233.85,14.9668]
[1731881537646,0.4618823,233.92,233.86,10.54254862]
[1731881538240,0.4618823,233.92,233.88,10.54254862]
[1731881538554,0.4618823,233.92,233.89,4.2755]
[1731881539051,0.4618823,233.92,233.89,14.9642]
[1731881539826,0.4618823,233.92,233.9,10.54254862]
[1731881540324,0.4618823,233.92,233.91,4.36877462]
[1731881540536,0.4618823,233.92,233.91,28.14565862]
[1731881543053,0.4618823,233.92,233.91,4.2751]
[1731881543464,0.4618823,233.92,233.91,14.81764862]
[1731881544040,0.4618823,233.92,233.91,4.2751]
[1731881545730,0.4618823,233.92,233.91,14.81764862]
[1731881547555,0.4618823,233.92,233.9,10.54254862]
[1731881547861,0.4618823,233.92,233.91,10.54254862]
[1731881550037,0.4618823,233.92,233.91,15.03681324]
[1731881550238,0.4618823,233.92,233.91,14.81764862]
[1731881551063,0.4618823,233.92,233.91,38.81369724]
[1731881551266,0.4618823,233.92,233.91,38.68820724]
[1731881552948,0.4618823,233.92,233.91,4.2751]
[1731881553150,0.4618823,233.92,233.9,10.6882]
[1731881553739,0.4618823,233.92,233.9,14.9635]
[1731881554070,0.4618823,233.92,233.9,10.6882]
[1731881557167,0.4618823,233.92,233.9,14.9635]
[1731881557353,0.4618823,233.92,233.91,10.63622324]
[1731881557872,0.4618823,233.92,233.91,34.66408724]
[1731881559666,0.4618823,233.92,233.91,10.63622324]
[1731881560043,0.4618823,233.92,233.91,34.66408724]
[1731881561464,0.4618823,233.92,233.91,34.41310724]
[1731881561968,0.4618823,233.92,233.91,34.66408724]
[1731881562362,20.7711,234.09,233.93,0.09367462]
[1731881562662,8.0087,234.1,234.05,10.54254862]
[1731881562849,10.04254862,234.14,234.07,10.54254862]
[1731881563052,10.54254862,234.13,234.06,10.54254862]
[1731881563249,10.54254862,234.14,234.07,10.54254862]
[1731881563961,11.00443092,234.15,234.08,14.81444862]
[1731881564145,10.54254862,234.12,234.05,10.54254862]
[1731881565253,10.54254862,234.13,234.06,10.54254862]
[1731881565570,11.00443092,234.15,234.08,10.54254862]
[1731881565867,0.4618823,234.15,234.08,10.54254862]
[1731881566046,0.4618823,234.15,234.09,10.54254862]
[1731881566360,0.4618823,234.15,234.11,10.54254862]
[1731881567237,0.4618823,234.15,234.08,10.54254862]
[1731881567649,0.4618823,234.15,234.09,14.81434862]
[1731881567861,0.4618823,234.15,234.1,10.54254862]
[1731881569747,0.4618823,234.15,234.1,14.81404862]
[1731881570146,0.4618823,234.15,234.14,10.54254862]
[1731881571145,0.4618823,234.15,234.14,34.41310724]
[1731881571649,0.4618823,234.15,234.14,38.68400724]
[1731881572770,0.4618823,234.15,234.14,38.93498724]
[1731881574176,0.4618823,234.15,234.14,28.39243862]
[1731881574377,0.4618823,234.15,234.14,38.93498724]
[1731881576054,0.4618823,234.15,234.11,10.6787]
[1731881576259,0.4618823,234.15,234.13,10.54254862]
[1731881576470,14.81344862,234.14,234.01,14.9566]
[1731881576673,10.54254862,234.1,234.01,14.9566]
[1731881576849,10.54254862,234.1,234.01,10.6833]
[1731881577053,10.54254862,234.09,234.01,21.22584862]
[1731881577467,10.54254862,234.09,234.01,25.49914862]
[1731881577671,10.54254862,234.07,233.99,10.54254862]
[1731881577860,10.54254862,234.09,234.01,10.54254862]
[1731881578052,14.81404862,234.11,234.03,14.81534862]
[1731881578247,10.54254862,234.13,234.05,10.54254862]
[1731881578458,14.81374862,234.13,234.05,10.54254862]
[1731881579352,15.27523092,234.15,234.06,23.776884]
[1731881579655,15.27523092,234.15,234.09,23.776884]
[1731881580257,15.27523092,234.15,234.07,23.776884]
[1731881580667,10.54254862,234.09,234.04,23.776884]
[1731881580866,10.54254862,234.07,233.99,10.54254862]
[1731881581376,20.0,234.14,233.99,10.54254862]
[1731881581554,10.54254862,234.1,234.02,10.54254862]
[1731881582254,4.7326823,234.15,234.05,0.09367462]
[1731881582449,20.0,234.12,234.05,23.776884]
[1731881583777,24.2714,234.12,234.05,23.776884]
[1731881583981,10.54254862,234.09,234.03,23.776884]
[1731881584147,10.54254862,234.09,234.02,21.22534862]
[1731881584755,10.54254862,234.09,234.02,25.49844862]
[1731881584992,10.54254862,234.11,234.02,25.49844862]
[1731881585474,10.54254862,234.11,234.03,23.776884]
[1731881585678,10.54254862,234.11,234.04,14.81524862]
[1731881585976,14.81404862,234.11,234.05,23.776884]
[1731881586364,14.81404862,234.11,234.04,23.776884]
[1731881586858,14.81404862,234.11,234.03,14.81534862]
[1731881586859,14.81404862,234.11,234.03,10.54254862]
[1731881587255,14.81404862,234.11,233.97,10.6848]
[1731881587256,10.54254862,234.05,233.97,10.6848]
[1731881587668,5.08243102,234.15,233.98,10.54254862]
[1731881587669,14.81474862,234.07,233.98,10.54254862]
[1731881587874,4.2722,234.07,234.01,10.54254862]
[1731881588381,14.81474862,234.07,233.99,10.54254862]
[1731881588971,14.81474862,234.07,234.0,23.776884]
[1731881589167,10.54254862,234.05,233.94,21.173]
[1731881589368,10.54254862,233.95,233.83,21.3826]
[1731881589579,21.3551,234.02,233.78,0.1]
[1731881589580,10.54254862,233.93,233.86,10.54254862]
[1731881589809,10.54254862,233.95,233.86,10.54254862]
[1731881590161,10.54254862,233.93,233.84,14.81894862]
[1731881590367,20.12549,234.01,233.89,10.54254862]
[1731881590588,20.0,234.01,233.93,10.54254862]
[1731881590895,10.54254862,234.04,233.96,4.2742]
[1731881591075,10.54254862,234.03,233.95,10.54254862]
[1731881591281,10.54254862,234.03,233.96,10.54254862]
[1731881591571,25.6274,234.07,234.0,10.54254862]
[1731881591773,14.81444862,234.09,234.02,10.54254862]
[1731881591975,8.0305,234.12,234.04,10.54254862]
[1731881592585,8.0305,234.12,234.06,10.54254862]
[1731881592769,8.0305,234.12,234.07,23.776884]
[1731881592959,8.0305,234.12,234.05,4.2725]
[1731881592960,8.0305,234.12,234.05,23.776884]
[1731881593158,12.3018,234.12,234.05,23.776884]
[1731881593799,10.54254862,234.07,234.01,23.776884]
[1731881593998,10.54254862,234.05,233.99,23.776884]
[1731881594203,10.54254862,234.01,233.94,10.54254862]
[1731881594500,16.83938431,234.02,233.94,16.83938431]
[1731881594997,16.83938431,234.01,233.93,31.80088431]
[1731881596295,16.83938431,234.01,233.95,4.2744]
[1731881596497,16.83938431,233.99,233.93,10.6868]
[1731881596872,16.83938431,233.97,233.93,10.6868]
[1731881597073,16.83938431,233.97,233.9,16.83938431]
[1731881597281,8.3264,233.98,233.92,16.83938431]
[1731881597791,8.3264,233.98,233.92,23.776884]
[1731881598006,16.83938431,233.97,233.89,16.83938431]
[1731881598200,4.2742,233.96,233.89,16.83938431]
[1731881598872,16.83938431,233.93,233.86,4.276]
[1731881599484,16.83938431,233.93,233.85,31.80588431]
[1731881599682,16.83938431,233.95,233.87,16.83938431]
[1731881600091,4.2745,233.95,233.89,16.83938431]
[1731881600302,4.2741,233.97,233.91,16.83938431]
[1731881600471,8.3264,233.98,233.91,16.83938431]
[1731881600678,8.3264,233.98,233.92,23.776884]
[1731881600883,12.6003,233.98,233.92,23.776884]
[1731881601085,8.3264,233.98,233.93,16.83938431]
[1731881601281,179.139385,234.1,233.95,16.83938431]
[1731881601282,16.83938431,234.02,233.95,16.83938431]
[1731881601496,29.53048431,234.03,233.97,23.776884]
[1731881603301,21.11198431,234.05,233.98,16.83938431]
[1731881603483,21.11198431,234.05,233.99,23.776884]